{"text_format":"3","workbook":"xlsx","n_sheets":2,"sheets":["Разплащателна фактура","Настройка на фирма"],"not_rendered":{"images":1,"defined_names":27},"read":"whole","date_system":"1900"}

{"sheet":"Разплащателна фактура","index":0,"n_rows":35,"n_cols":7,"rows_kept":35,"merged":[[1,3,2,4],[3,3,3,4],[4,3,4,4],[5,3,5,4],[23,1,23,3],[24,1,24,3],[25,1,25,3],[26,1,26,3]]}
[null,"ФАКТУРА","0005"]
[null,{"$f":"TODAY()","v":"2022-04-01"},null,{"$f":"ОбщоЗаФактурата","v":79.65},null," ","Настройка на фирма"]
[null,"ПЛАЩАНЕ, ДЪЛЖИМО ОТ:",{"$f":"TODAY()+15","v":"2022-04-16"},null,null," "]
[null,"БИЛЯНА ИВАНОВА",null,"ADVENTURE WORKS"]
[null,"Fabrikam, Inc.",null,"Ул. Явор № 23"]
[null,"Ул. Васил Левски № 17",null,"1679 Чепеларе, обл. Смолян"]
[null,"12345 Карлово, обл. Пловдив"]
[null,"КОЛИЧЕСТВО","ПОДРОБНИ ДАННИ","ЕДИНИЧНА ЦЕНА","РЕД ОБЩО"]
[null,2,"Крепежни елементи",14.95,{"$f":"IFERROR(ПодробностиЗаФактура[[#This Row],[ЕДИНИЧНА ЦЕНА]]*ПодробностиЗаФактура[[#This Row],[КОЛИЧЕСТВО]],\"\")","v":{"v":29.9,"d":"29.90"}}]
[null,5,"Шайби",9.95,{"$f":"IFERROR(ПодробностиЗаФактура[[#This Row],[ЕДИНИЧНА ЦЕНА]]*ПодробностиЗаФактура[[#This Row],[КОЛИЧЕСТВО]],\"\")","v":49.75}]
[{"$nulls":4},{"$f":"IFERROR(ПодробностиЗаФактура[[#This Row],[ЕДИНИЧНА ЦЕНА]]*ПодробностиЗаФактура[[#This Row],[КОЛИЧЕСТВО]],\"\")","v":0}]
[{"$nulls":4},{"$f":"IFERROR(ПодробностиЗаФактура[[#This Row],[ЕДИНИЧНА ЦЕНА]]*ПодробностиЗаФактура[[#This Row],[КОЛИЧЕСТВО]],\"\")","v":0}]
[{"$nulls":4},{"$f":"IFERROR(ПодробностиЗаФактура[[#This Row],[ЕДИНИЧНА ЦЕНА]]*ПодробностиЗаФактура[[#This Row],[КОЛИЧЕСТВО]],\"\")","v":0}]
[{"$nulls":4},{"$f":"IFERROR(ПодробностиЗаФактура[[#This Row],[ЕДИНИЧНА ЦЕНА]]*ПодробностиЗаФактура[[#This Row],[КОЛИЧЕСТВО]],\"\")","v":0}]
[{"$nulls":4},{"$f":"IFERROR(ПодробностиЗаФактура[[#This Row],[ЕДИНИЧНА ЦЕНА]]*ПодробностиЗаФактура[[#This Row],[КОЛИЧЕСТВО]],\"\")","v":0}]
[{"$nulls":4},{"$f":"IFERROR(ПодробностиЗаФактура[[#This Row],[ЕДИНИЧНА ЦЕНА]]*ПодробностиЗаФактура[[#This Row],[КОЛИЧЕСТВО]],\"\")","v":0}]
[{"$nulls":4},{"$f":"IFERROR(ПодробностиЗаФактура[[#This Row],[ЕДИНИЧНА ЦЕНА]]*ПодробностиЗаФактура[[#This Row],[КОЛИЧЕСТВО]],\"\")","v":0}]
[{"$nulls":4},{"$f":"IFERROR(ПодробностиЗаФактура[[#This Row],[ЕДИНИЧНА ЦЕНА]]*ПодробностиЗаФактура[[#This Row],[КОЛИЧЕСТВО]],\"\")","v":0}]
[{"$nulls":4},{"$f":"IFERROR(ПодробностиЗаФактура[[#This Row],[ЕДИНИЧНА ЦЕНА]]*ПодробностиЗаФактура[[#This Row],[КОЛИЧЕСТВО]],\"\")","v":0}]
[{"$nulls":4},{"$f":"IFERROR(ПодробностиЗаФактура[[#This Row],[ЕДИНИЧНА ЦЕНА]]*ПодробностиЗаФактура[[#This Row],[КОЛИЧЕСТВО]],\"\")","v":0}]
[{"$nulls":4},{"$f":"IFERROR(ПодробностиЗаФактура[[#This Row],[ЕДИНИЧНА ЦЕНА]]*ПодробностиЗаФактура[[#This Row],[КОЛИЧЕСТВО]],\"\")","v":0}]
[{"$nulls":4},{"$f":"IFERROR(ПодробностиЗаФактура[[#This Row],[ЕДИНИЧНА ЦЕНА]]*ПодробностиЗаФактура[[#This Row],[КОЛИЧЕСТВО]],\"\")","v":0}]
[{"$nulls":4},{"$f":"IFERROR(ПодробностиЗаФактура[[#This Row],[ЕДИНИЧНА ЦЕНА]]*ПодробностиЗаФактура[[#This Row],[КОЛИЧЕСТВО]],\"\")","v":0}]
[null,"Отстъпка"]
[null,"Нетна сума",null,null,{"$f":"SUM(ПодробностиЗаФактура[РЕД ОБЩО])-E24","v":{"v":79.65,"d":"79.65 лв."}}]
[null,"Данък"]
[null,{"$f":"REPT(НастройкаНаФирма_СъкращениеЗаВашатаВалута,LEN(НастройкаНаФирма_СъкращениеЗаВашатаВалута)>0) & \" ОБЩО\"","v":"BGN ОБЩО"},null,null,{"$f":"IFERROR(E25+E26, \"\")","v":{"v":79.65,"d":"79.65 лв."}}]
[null,"ПОДРОБНИ ДАННИ ЗА ПЛАЩАНЕ",null,null,"ДРУГА ИНФОРМАЦИЯ"]
[null,"Име на бенефициента:",{"$f":" НастройкаНаФирма_ИмеНаБанкаПолучател","v":"Adventure Works"},null,{"$f":"IFERROR(НастройкаНаФирма_ВашетоИме,\"\")","v":""}]
[null,"Име на банката:",{"$f":"НастройкаНаФирма_ИмеНаБанка","v":"Woodgrove Bank"},null,{"$f":"IFERROR(\"Телефон: \" & НастройкаНаФирма_ВашиятТелефон,\"\")","v":"Телефон: 425-555-0150"}]
[null,"Адрес на банката:",{"$f":"НастройкаНаФирма_АдресНаБанката","v":"1679 ул. Горна, Чепеларе, окр. Смолянски"},null,{"$f":"IFERROR(\"Факс: \" & НастройкаНаФирма_ВашиятФакс,\"\")","v":"Факс: 425-555-0151"}]
[null,"Номер на сметка:",{"$f":"НастройкаНаФирма_БанковаСметка","v":1234567},null,{"$f":"IFERROR(НастройкаНаФирма_ВашиятURLАдрес,\"\")","v":"Adventure Works.com"}]
[null,"IBAN (SWIFT код)",{"$f":"НастройкаНаФирма_КодНаБанка","v":9876543210},null,{"$f":"IFERROR(НастройкаНаФирма_ВашиятИмейлАдрес,\"\")","v":"Accounting@Adventure-Works.com"}]
[null,"Реквизити на плащане:",{"$f":"ПоказванНомерНаФактура","v":"0005"},null,{"$f":"IFERROR(IF(LEN(Client_PO),\"Договор/поръчка за покупка: \" & Client_PO,\"\"),\"\")","v":""}]
[null,{"$f":"UPPER(\"Плащането трябва да се извърши чрез банков превод или чек, платим на \" &НастройкаНаФирма_ПолучателНаПаритеОтЧека & \".\")","v":"ПЛАЩАНЕТО ТРЯБВА ДА СЕ ИЗВЪРШИ ЧРЕЗ БАНКОВ ПРЕВОД ИЛИ ЧЕК, ПЛАТИМ НА ADVENTURE WORKS."}]

{"sheet":"Настройка на фирма","index":1,"n_rows":20,"n_cols":5,"rows_kept":20}
[null,"НАСТРОЙКА НА ФИРМА"]
[null,"ПОДРОБНИ ДАННИ ЗА ФАКТУРИРАЩАТА ФИРМА","СТОЙНОСТ",null,"Разплащателна фактура"]
[null,"Име","Милан Апостолов"]
[null,"Име на фирма","ADVENTURE WORKS"]
[null,"Ред за адрес 1","Ул. Явор № 23"]
[null,"Ред за адрес 2","1679 Чепеларе, обл. Смолян"]
[null,"Ред за адрес 3"]
[null,"Ред за адрес 4"]
[null,"Ред за адрес 5"]
[null,"Телефон","425-555-0150"]
[null,"Факс","425-555-0151"]
[null,"Уеб сайт","Adventure Works.com"]
[null,"Имейл","Accounting@Adventure-Works.com"]
[null,"Съкращение за валута","BGN"]
[null,"Име на бенефициента на банковия превод","Adventure Works"]
[null,"Име на банката","Woodgrove Bank"]
[null,"Адрес на банката","1679 ул. Горна, Чепеларе, окр. Смолянски"]
[null,"Номер на сметка",1234567]
[null,"IBAN (SWIFT код)",9876543210]
[null,"Направи чековете платими на","Adventure Works"]